bitfinex/quotes_ETHUSD_20220212
["timestamp","ask_amount","ask_price","bid_price","bid_amount"]
[1644687076511,1.1922704,2934.1,2933.2,0.791]
[1644687076512,1.45072511,2933.9,2933.2,0.791]
[1644687076709,1.45072511,2933.8,2933.2,0.791]
[1644687076908,1.1922704,2934.1,2933.3,0.1703]
[1644687077109,1.4507197,2934.0,2933.3,0.1703]
[1644687077311,2.15393982,2934.0,2933.4,0.00982642]
[1644687077510,1.4507197,2933.9,2933.4,0.00982642]
[1644687078308,1.4507197,2933.9,2933.3,0.1703]
[1644687078509,1.4507197,2933.9,2933.5,0.00982628]
[1644687078708,0.02627372,2933.5,2933.3,0.1703]
[1644687079361,0.02627372,2933.5,2933.3,3.53789681]
[1644687079560,0.02627372,2933.5,2933.4,1.34319]
[1644687079759,0.02627372,2933.5,2933.4,1.64319]
[1644687079962,0.02627372,2933.5,2933.4,1.94319]
[1644687081365,0.02627372,2933.5,2933.4,1.091]
[1644687082065,0.02627372,2933.5,2933.4,0.491]
[1644687082665,0.02627372,2933.5,2933.3,0.1703]
[1644687083507,0.02627372,2933.5,2932.9,0.3]
[1644687084508,0.02627372,2933.5,2933.1,0.01038873]
[1644687085409,0.02627372,2933.5,2933.0,0.1703]
[1644687085813,0.02627372,2933.5,2933.2,0.01038857]
[1644687086755,0.02627372,2933.5,2933.0,0.1703]
[1644687086958,0.02627372,2933.5,2933.2,0.00480158]
[1644687087458,0.02627372,2933.5,2933.3,0.8522]
[1644687087660,0.02627372,2933.5,2933.3,1.3432]
[1644687087856,0.02627372,2933.5,2933.4,0.3]
[1644687088057,0.02627372,2933.5,2933.4,3.60527537]
[1644687088258,0.02627372,2933.5,2933.3,1.9480015]
[1644687088459,0.02627372,2933.5,2933.4,3.31389608]
[1644687088657,0.02627372,2933.5,2933.4,3.33974878]
[1644687088858,0.02627372,2933.5,2933.4,4.83074878]
[1644687089058,0.1703,2934.5,2933.7,1.70394]
[1644687089258,1.45046091,2934.4,2933.8,4.55633491]
[1644687089458,1.45046091,2934.4,2933.8,4.85633491]
[1644687089459,0.0103925,2933.9,2933.8,4.85633491]
[1644687090262,4.372,2934.6,2933.8,4.85633491]
[1644687090513,4.372,2934.6,2933.8,1.091]
[1644687090514,0.01039301,2934.0,2933.8,1.091]
[1644687091115,0.01039301,2934.0,2933.9,3.31147342]
[1644687091314,0.01039301,2934.0,2933.9,4.14746325]
[1644687091516,0.64718059,2935.2,2933.9,4.99941325]
[1644687091717,0.04156517,2934.5,2934.1,2.00383]
[1644687091916,0.04156517,2934.5,2934.2,4.72634746]
[1644687092115,0.04156517,2934.5,2934.2,4.89664746]
[1644687092314,0.04156517,2934.5,2934.3,1.0]
[1644687092516,0.04156517,2934.5,2934.4,3.82961426]
[1644687092818,4.4372,2935.4,2934.4,4.06351381]
[1644687092819,0.64718059,2935.4,2934.4,4.06351381]
[1644687093016,0.01039212,2934.5,2934.4,4.06351381]
[1644687093218,0.01039212,2934.5,2934.4,3.82518693]
[1644687093816,0.64718059,2935.4,2934.4,3.82518693]
[1644687094257,0.64718059,2935.4,2934.4,0.491]
[1644687094258,0.01039203,2934.6,2934.4,0.491]
[1644687094458,0.01039203,2934.6,2934.4,3.81531884]
[1644687094658,0.01039203,2934.6,2934.5,3.31662354]
[1644687094858,0.01039203,2934.6,2934.5,3.61662354]
[1644687095059,1.45030301,2934.6,2934.5,3.61662354]
[1644687095258,1.45030301,2934.6,2934.4,0.491]
[1644687095259,1.45030301,2934.6,2934.4,4.1010732]
[1644687095464,0.01039187,2934.7,2934.5,3.4282978]
[1644687095663,0.01039187,2934.7,2934.4,0.4703]
[1644687095962,0.01039187,2934.7,2934.6,0.491]
[1644687096163,0.01039187,2934.7,2934.6,0.741]
[1644687096363,1.45029364,2934.7,2934.6,1.041]
[1644687096565,0.01008012,2934.7,2934.6,1.041]
[1644687096864,0.01008012,2934.7,2934.6,4.79622113]
[1644687097264,0.01008012,2934.7,2934.6,5.65772113]
[1644687097564,0.1703,2935.5,2934.6,5.65772113]
[1644687097866,0.01007997,2934.8,2934.6,5.65772113]
[1644687098112,0.01007997,2934.8,2934.7,3.27549159]
[1644687098316,0.01007997,2934.8,2934.7,3.93269142]
[1644687098513,0.01007997,2934.8,2934.7,0.6613]
[1644687098713,8.63938059,2935.6,2934.7,3.92890842]
[1644687098916,0.01007981,2934.9,2934.7,3.92890842]
[1644687099115,0.01007981,2934.9,2934.7,0.6613]
[1644687099516,1.45028833,2934.8,2934.7,0.6613]
[1644687099718,1.45028833,2934.8,2934.7,0.491]
[1644687099917,0.76924721,2935.5,2934.7,0.491]
[1644687100116,0.00980193,2934.9,2934.7,0.491]
[1644687100316,1.44631537,2934.8,2934.7,0.491]
[1644687100518,0.00980193,2934.9,2934.7,0.491]
[1644687101123,1.4164278,2935.5,2934.7,0.491]
[1644687101319,0.43199999,2934.6,2934.2,2.31859129]
[1644687101524,0.43199999,2934.6,2934.3,0.491]
[1644687101758,0.43199999,2934.6,2933.9,3.038]
[1644687101957,0.43199999,2934.6,2933.6,1.87443]
[1644687101958,1.30497405,2934.6,2933.6,1.87443]
[1644687102159,1.30497405,2934.6,2933.6,1.70413]
[1644687102361,1.30497405,2934.6,2933.7,0.1703]
[1644687102561,0.00980286,2934.2,2933.7,0.1703]
[1644687102760,0.00980286,2934.2,2933.6,1.70413]
[1644687102961,0.41180285,2934.6,2933.6,2.70413]
[1644687103162,0.41180285,2934.6,2933.7,3.42725513]
[1644687103364,0.41180285,2934.6,2933.8,0.1703]
[1644687103964,0.41180285,2934.6,2933.6,0.1703]
[1644687104963,0.00559892,2934.3,2933.7,0.85211]
[1644687105163,0.00559892,2934.3,2933.8,0.16640574]
[1644687105365,0.00559892,2934.3,2933.7,0.1703]
[1644687105610,0.00559892,2934.3,2933.6,0.17209129]
[1644687106014,0.41180285,2934.6,2933.6,0.17209129]
[1644687106212,0.00559873,2934.3,2933.6,1.02422129]
[1644687106413,0.00559873,2934.3,2933.7,3.36780991]
[1644687106613,0.00559873,2934.3,2933.7,3.85880991]
[1644687106814,0.00559873,2934.3,2933.8,0.17209129]
[1644687107213,0.41180285,2934.6,2933.8,0.17209129]
[1644687107414,0.01039206,2934.3,2933.8,0.17209129]
[1644687108015,0.00808053,2934.3,2933.8,0.17209129]
[1644687108518,0.41180285,2934.6,2933.8,0.17209129]
[1644687108715,0.41180285,2934.6,2933.8,0.34239129]
[1644687109759,0.00559157,2934.4,2933.9,0.17209129]
[1644687110664,0.41180285,2934.6,2933.9,0.17209129]
[1644687111069,0.00559148,2934.4,2933.9,0.17209129]
[1644687111966,0.41180285,2934.6,2933.9,0.17209129]
[1644687112167,0.00559193,2934.4,2933.9,0.17209129]
[1644687113112,0.41180285,2934.6,2933.9,0.17209129]
[1644687113313,0.00559193,2934.4,2933.9,0.17209129]
[1644687114415,0.41180285,2934.6,2933.9,0.17209129]
[1644687114615,0.00559193,2934.4,2933.9,0.17209129]
[1644687114815,0.00559193,2934.4,2933.9,1.02415129]
[1644687115016,0.00559193,2934.4,2933.9,1.32415129]
[1644687115216,0.00559193,2934.4,2933.9,0.47209129]
[1644687115414,0.00559193,2934.4,2933.9,0.17209129]
[1644687115621,0.41180285,2934.6,2933.9,0.17209129]
[1644687115818,0.01039418,2934.4,2933.9,0.17209129]
[1644687116419,0.01039418,2934.4,2934.0,0.491]
[1644687116619,0.01039418,2934.4,2934.0,0.6613]
[1644687116859,0.41180285,2934.6,2934.1,3.31749512]
[1644687117060,0.01039418,2934.4,2934.1,3.31749512]
[1644687117264,0.01039418,2934.4,2934.1,3.61749512]
[1644687117664,0.01039418,2934.4,2934.1,0.791]
[1644687118065,0.41180285,2934.6,2934.1,1.64299]
[1644687118264,0.01039437,2934.4,2934.1,1.64299]
[1644687119067,0.41180285,2934.6,2934.1,1.64299]
[1644687119467,0.01039437,2934.4,2934.1,1.64299]
[1644687119867,0.01039437,2934.4,2934.1,4.96484796]
[1644687120070,0.01039437,2934.4,2934.1,4.92389022]
[1644687120267,0.41180285,2934.6,2934.1,1.64299]
[1644687120717,0.01039437,2934.4,2934.1,1.64299]
[1644687121117,0.01039437,2934.4,2934.2,3.3754018]
[1644687121320,0.01039437,2934.4,2934.3,0.491]
[1644687121524,0.41180285,2934.6,2934.3,3.92116431]
[1644687121720,0.41180285,2934.6,2934.3,4.22116431]
[1644687121919,0.01039446,2934.4,2934.3,4.22116431]
[1644687122919,0.01039438,2934.5,2934.3,4.22116431]
[1644687123120,0.01039438,2934.5,2934.4,3.31075648]
[1644687123320,0.01039438,2934.5,2934.4,0.491]
[1644687123921,0.41180285,2934.6,2934.4,0.491]
[1644687124361,0.42219707,2934.6,2934.4,0.491]
[1644687125170,1.45033688,2934.5,2934.4,0.491]
[1644687125367,0.41739866,2934.6,2934.4,0.491]
[1644687126371,0.41180285,2934.6,2934.4,0.491]
[1644687126568,0.41739866,2934.6,2934.4,0.491]
[1644687126969,0.41739866,2934.6,2934.4,3.78781964]
[1644687127168,0.41739866,2934.6,2934.4,0.491]
[1644687127569,0.41180285,2934.6,2934.4,0.491]
[1644687127768,0.42220277,2934.6,2934.4,0.491]
[1644687128708,0.41180285,2934.6,2934.4,0.491]
[1644687128910,0.41180285,2934.6,2934.5,0.85186]
[1644687129109,0.42220277,2934.6,2934.5,1.34286]
[1644687129312,0.42220277,2934.6,2934.5,1.98346]
[1644687129909,0.41180285,2934.6,2934.5,1.1316]
[1644687132361,0.41055172,2934.6,2934.5,4.54205574]
[1644687133261,0.41055172,2934.6,2934.5,1.1316]
[1644687133462,0.41055172,2934.6,2934.5,1.98345]
[1644687134765,0.41055172,2934.6,2934.5,1.97760042]
[1644687135617,0.41055172,2934.6,2934.5,5.43740817]
[1644687136415,0.01039984,2934.7,2934.5,26.56949946]
[1644687136616,0.01039984,2934.7,2934.6,5.41280926]
[1644687136816,0.04159311,2935.1,2934.7,3.5516]
[1644687137016,0.04159311,2935.1,2934.8,3.6464693]
[1644687137217,4.4001,2935.6,2934.9,0.491]
[1644687137413,1.44996263,2935.5,2935.0,3.68069306]
[1644687137615,1.44996263,2935.5,2935.1,1.34265]
[1644687138013,1.44996263,2935.4,2935.2,3.29304058]
[1644687138219,1.44996263,2935.3,2935.2,0.3]
[1644687138415,0.64718059,2935.9,2935.3,0.491]
[1644687138614,1.44994256,2935.8,2935.3,0.491]
[1644687138814,1.44994256,2935.7,2935.3,0.491]
[1644687139114,1.44994256,2935.6,2935.3,0.491]
[1644687139363,1.44994256,2935.5,2935.3,0.491]
[1644687139566,1.44994256,2935.4,2935.3,0.491]
[1644687139964,1.44994256,2935.5,2935.3,0.491]
[1644687140163,1.44994256,2935.5,2935.3,0.8316]
[1644687140566,1.44994256,2935.5,2935.4,0.3]
[1644687140769,1.44994256,2935.5,2935.3,0.23160001]
[1644687140967,0.01039844,2935.5,2935.4,0.491]
[1644687141168,1.46037755,2935.5,2935.4,0.491]
[1644687141768,1.46037755,2935.5,2935.4,3.9097788]
[1644687142072,12.7547,2936.1,2935.4,0.491]
[1644687142272,12.7547,2936.1,2935.6,0.85148]
[1644687142274,1.49142572,2936.0,2935.6,0.85148]
[1644687142468,1.44983852,2935.9,2935.7,0.491]
[1644687142667,1.44983852,2935.9,2935.8,0.491]
[1644687142868,1.44983852,2935.9,2935.4,0.3]
[1644687143115,1.44983852,2935.9,2935.3,0.23160001]
[1644687143116,1.44983852,2935.9,2935.8,0.491]
[1644687143321,1.44983852,2936.0,2935.6,0.23160001]
[1644687143519,1.44983852,2935.9,2935.6,0.23160001]
[1644687143720,1.44983852,2935.8,2935.6,0.23160001]
[1644687143920,1.44983852,2935.7,2935.6,0.23160001]
[1644687144321,1.44983852,2935.9,2935.6,0.72260001]
[1644687144522,1.44983852,2935.8,2935.6,0.72260001]
[1644687144722,1.44983852,2935.7,2935.6,0.72260001]
[1644687145121,1.44983852,2935.7,2935.6,1.02260001]
[1644687145720,1.44983852,2936.2,2935.6,1.02260001]
[1644687145921,0.01039803,2935.8,2935.6,1.02260001]
[1644687146121,1.44983852,2935.7,2935.6,1.02260001]
[1644687148263,0.01039803,2935.8,2935.6,1.02260001]
[1644687148464,1.44983852,2935.7,2935.6,1.02260001]
[1644687149064,1.44983852,2935.7,2935.6,1.32260001]
[1644687149265,1.44983852,2935.7,2935.6,1.02260001]
[1644687149465,0.01039803,2935.8,2935.6,1.32260001]
[1644687149665,1.44983852,2935.7,2935.6,1.32260001]
[1644687153119,0.01039803,2935.8,2935.6,1.32260001]
[1644687153318,1.44983852,2935.7,2935.6,1.32260001]
[1644687155370,0.01039803,2935.8,2935.6,1.32260001]
[1644687155572,1.79778059,2936.3,2935.6,1.31275918]
[1644687155770,1.62473251,2936.3,2935.6,1.31275918]
[1644687156371,0.97755192,2936.3,2935.6,1.31275918]
[1644687158422,1.62473251,2936.3,2935.6,1.31275918]
[1644687159122,1.63512917,2936.3,2935.8,0.01039858]
[1644687159523,0.98794858,2936.3,2935.9,0.23160001]
[1644687159723,0.01039666,2936.3,2935.9,0.23160001]
[1644687159923,3.1216,2936.5,2935.9,0.23160001]
[1644687160328,0.01039694,2936.3,2936.0,0.01039833]
[1644687160730,0.48399668,2935.8,2935.7,4.14361073]
[1644687160928,0.48399668,2935.8,2935.7,4.14684511]
[1644687162160,0.48399668,2935.8,2935.7,4.13279815]
[1644687162963,0.48399668,2935.8,2935.7,4.13084759]
[1644687163374,0.48399668,2935.8,2935.7,5.30293888]
[1644687163770,0.48399668,2935.8,2935.7,4.30293888]
[1644687163971,0.48399668,2935.8,2935.7,5.30293888]
[1644687166220,0.48399668,2935.8,2935.7,1.96114073]
[1644687166420,0.48399668,2935.8,2935.7,0.96114073]
[1644687166818,0.48399668,2935.8,2935.7,4.29804393]
[1644687167019,0.01039663,2936.2,2935.7,0.96114073]
[1644687167222,3.1216,2936.5,2935.7,5.46114073]
[1644687167418,3.1216,2936.5,2936.0,1.70261]
[1644687167419,0.01039663,2936.2,2936.0,1.70261]
[1644687167619,0.01039663,2936.2,2936.1,0.491]
[1644687168422,1.2361,2936.7,2936.1,0.491]
[1644687168620,0.01039721,2936.3,2936.1,0.491]
[1644687169465,0.01039721,2936.3,2936.1,3.77029936]
[1644687169663,10.4271,2937.2,2936.1,3.77029936]
[1644687169861,4.4144,2937.2,2936.1,3.77029936]
[1644687170063,4.4144,2937.2,2936.1,0.491]
[1644687170263,5.5688,2937.2,2936.1,3.82981578]
[1644687170465,5.5688,2937.2,2936.1,3.80278815]
[1644687170866,5.5688,2937.2,2936.1,0.491]
[1644687172070,5.5688,2937.2,2936.1,3.84065437]
[1644687172268,5.5688,2937.2,2936.1,3.78868292]
[1644687172470,0.01039013,2936.7,2936.1,3.78868292]
[1644687172669,0.01039013,2936.7,2936.1,3.78664516]
[1644687172870,0.01039013,2936.7,2936.1,0.491]
[1644687173113,5.61035429,2937.2,2936.1,0.491]
[1644687173313,5.5688,2937.2,2936.1,3.85607807]
[1644687173520,0.01039046,2936.5,2936.1,3.85607807]
[1644687173920,0.01039046,2936.5,2936.1,0.491]
[1644687174122,0.01039046,2936.5,2936.1,3.78378523]
[1644687174520,5.7389,2937.2,2936.1,4.63517523]
[1644687174720,0.01039063,2936.4,2936.1,4.63517523]
[1644687174923,0.01039063,2936.4,2936.1,1.34239]
[1644687175321,0.01039063,2936.4,2936.1,4.69380509]
[1644687175724,5.5688,2937.2,2936.1,4.69380509]
[1644687175923,0.01039071,2936.4,2936.1,4.69380509]
[1644687176125,0.01039071,2936.4,2936.1,3.84241509]
[1644687176865,5.5688,2937.2,2936.1,3.84241509]
[1644687177066,0.01039071,2936.4,2936.1,3.84241509]
[1644687177266,0.01039071,2936.4,2936.2,0.85132]
[1644687177466,0.01039071,2936.4,2936.3,0.491]
[1644687177865,0.01039071,2936.4,2936.3,0.791]
[1644687178065,4.375,2937.2,2936.3,0.791]
[1644687178265,0.01039054,2936.5,2936.3,0.791]
[1644687179266,4.375,2937.2,2936.3,0.791]
[1644687179267,4.375,2937.2,2936.3,0.491]
[1644687179473,4.375,2937.2,2935.9,0.01039292]
[1644687179474,0.01039046,2936.5,2935.9,0.01039292]
[1644687179671,1.44959263,2936.4,2935.9,0.01039292]
[1644687180522,1.44959263,2936.4,2935.6,0.491]
[1644687180717,1.4599835,2936.3,2935.9,0.01039244]
[1644687180916,1.44959263,2936.2,2935.9,0.01039244]
[1644687181721,1.44959263,2936.2,2935.6,1.091]
[1644687181919,0.01039086,2936.2,2935.9,0.01039225]
[1644687182919,1.3028,2936.8,2935.6,0.491]
[1644687183121,0.01039086,2936.2,2935.9,0.01039225]
[1644687183924,1.3028,2936.8,2935.6,0.791]
[1644687184120,1.44964571,2936.7,2935.6,1.091]
[1644687184379,1.44964571,2936.7,2935.9,0.01039225]
[1644687184380,0.01039086,2936.2,2935.9,0.01039225]
[1644687185177,1.3028,2936.8,2935.6,1.26309129]
[1644687185379,1.4484791,2936.7,2935.6,1.26309129]
[1644687185583,0.01039086,2936.2,2935.9,0.01039225]
[1644687186384,0.01039086,2936.2,2935.7,0.1701]
[1644687186385,1.3028,2936.8,2935.7,0.1701]
[1644687186585,0.01039086,2936.2,2935.9,0.01039225]
[1644687187586,1.3028,2936.8,2935.7,0.34219129]
[1644687187788,0.01039086,2936.2,2935.9,0.01039225]
[1644687188817,1.3028,2936.8,2935.7,0.34219129]
[1644687189017,1.3028,2936.8,2935.9,0.01039225]
[1644687189018,0.01039086,2936.2,2935.9,0.01039225]
[1644687189219,0.01039086,2936.2,2935.9,0.50139225]
[1644687189718,0.01039086,2936.2,2935.9,0.80139225]
[1644687190220,0.01039086,2936.2,2935.9,1.65284225]
[1644687190519,0.01039086,2936.2,2935.9,0.80139225]
[1644687191121,1.1327,2936.8,2935.9,0.791]
[1644687191523,0.01039086,2936.2,2935.9,0.80139225]
[1644687192470,1.1327,2936.8,2935.9,0.791]
[1644687192670,0.01039086,2936.2,2935.9,0.80139225]
[1644687193573,1.1327,2936.8,2935.9,0.9611]
[1644687193971,0.01039086,2936.2,2935.9,0.80139225]
[1644687194775,1.1327,2936.8,2935.9,0.791]
[1644687194973,0.01039086,2936.2,2935.9,0.80139225]
[1644687195822,0.01039086,2936.2,2935.9,1.65284225]
[1644687196022,1.1327,2936.8,2935.9,1.64245]
[1644687196225,0.00555042,2936.2,2935.9,1.64245]
[1644687196422,0.00555042,2936.2,2935.9,0.791]
[1644687197222,1.1327,2936.8,2935.9,0.791]
[1644687197425,0.01039668,2936.2,2935.9,0.80139807]
[1644687198325,1.1327,2936.8,2935.9,1.26309129]
[1644687198724,0.01039668,2936.2,2935.9,1.27348936]
[1644687199565,1.1327,2936.8,2935.9,1.26309129]
[1644687199765,1.1327,2936.8,2936.0,0.1701]
[1644687199969,1.1327,2936.8,2936.1,0.491]
[1644687199970,0.01039668,2936.2,2936.1,0.491]
[1644687200772,1.1327,2936.8,2936.1,0.491]
[1644687201173,0.01039669,2936.3,2936.1,0.491]
[1644687201973,1.1327,2936.8,2936.1,0.491]
[1644687202375,0.01039661,2936.3,2936.1,0.491]
[1644687203024,0.01039661,2936.3,2935.9,0.01039835]
[1644687203025,1.47299999,2936.0,2935.9,0.01039835]
[1644687203227,1.47299999,2936.0,2935.1,4.52139129]
[1644687203228,1.47299999,2936.0,2935.2,0.1703]
[1644687203523,1.47299999,2936.0,2935.9,0.00485272]
[1644687204327,1.47299999,2936.0,2934.9,3.6703]
[1644687204528,1.47299999,2936.0,2934.9,0.1703]
[1644687204726,1.47299999,2936.0,2935.8,0.0048528]
[1644687205529,1.44974338,2935.9,2934.9,3.6703]
[1644687205726,1.44974338,2935.9,2934.9,4.4613]
[1644687205928,1.44974338,2935.9,2935.8,0.01039181]
[1644687206874,1.44855064,2935.9,2934.9,0.6613]
[1644687207077,2.19555064,2935.9,2935.7,0.01039189]
[1644687207274,0.747,2935.9,2935.7,0.01039189]
[1644687208178,1.47299999,2936.0,2934.9,0.9613]
[1644687208375,1.47299999,2936.0,2935.7,0.01039197]
[1644687208576,2.3282574,2936.0,2935.7,0.01039197]
[1644687208776,1.47299999,2936.0,2935.7,0.01039197]
[1644687209276,1.47299999,2936.0,2934.9,1.81304]
[1644687209478,1.47299999,2936.0,2935.7,0.01039189]
[1644687210529,1.47299999,2936.0,2935.0,0.4703]
[1644687210722,1.47299999,2936.0,2935.7,0.01039189]
[1644687211723,1.47299999,2936.0,2935.0,0.4703]
[1644687211922,1.47299999,2936.0,2935.7,0.01039189]
[1644687212323,1.15144496,2936.0,2935.7,0.01039189]
[1644687212926,1.15144496,2936.0,2935.0,0.4703]
[1644687213125,1.15144496,2936.0,2935.7,0.01039189]
[1644687214126,1.15144496,2936.0,2935.0,0.4703]
[1644687214127,1.15144496,2936.0,2935.0,0.1703]
[1644687214367,1.15144496,2936.0,2935.7,0.01039189]
[1644687215374,1.15144496,2936.0,2934.9,1.091]
[1644687215572,1.15144496,2936.0,2935.7,0.01039189]
[1644687216474,1.15144496,2936.0,2934.9,1.091]
[1644687216675,0.95144496,2936.0,2935.7,0.01039189]
[1644687217672,0.95144496,2936.0,2934.9,1.091]
[1644687217875,0.95144496,2936.0,2935.7,0.01039189]
[1644687218919,0.95144496,2936.0,2934.9,1.091]
[1644687219119,0.95144496,2936.0,2935.7,0.01039189]
[1644687220017,0.95144496,2936.0,2935.0,0.1703]
[1644687220219,0.95144496,2936.0,2935.7,0.01039189]
[1644687221323,0.95144496,2936.0,2935.0,0.1703]
[1644687221521,0.95144496,2936.0,2935.7,0.01039189]
[1644687222366,0.95144496,2936.0,2935.0,0.1703]
[1644687222765,0.95144496,2936.0,2935.7,0.01039189]
[1644687222968,0.02078378,2935.6,2935.0,0.1703]
[1644687223167,7.12078378,2935.9,2935.0,0.1703]
[1644687224167,1.0,2935.8,2935.0,0.1703]
[1644687224368,1.7132,2935.8,2934.6,0.1703]
[1644687224568,0.84578791,2934.9,2934.6,0.1703]
[1644687224787,1.90188791,2934.9,2934.5,0.1703]
[1644687225267,1.90188791,2934.9,2933.7,0.1703]
[1644687225531,1.3211,2934.8,2933.7,0.00360277]
[1644687225728,1.3211,2934.8,2933.5,0.17390277]
[1644687225926,2.3211,2934.8,2933.6,0.00360277]
[1644687226526,2.3211,2934.8,2933.6,0.17569406]
[1644687226727,2.3211,2934.8,2933.7,0.00360277]
[1644687226926,1.45041011,2934.7,2933.7,0.00360277]
[1644687227327,2.45041011,2934.7,2933.7,0.17569406]
[1644687227528,2.45041011,2934.7,2934.1,0.01039461]
[1644687227529,1.45041011,2934.6,2934.1,0.01039461]
[1644687228427,1.45041011,2934.6,2933.7,0.17569406]
[1644687228627,1.3211,2934.8,2933.7,0.17569406]
[1644687228827,1.3211,2934.8,2934.2,0.01039437]
[1644687228828,1.40037715,2934.7,2934.2,0.01039437]
[1644687229671,1.40037715,2934.7,2933.7,0.17569406]
[1644687229871,1.3211,2934.8,2934.3,0.0103942]
[1644687230876,1.3211,2934.8,2933.7,0.17569406]
[1644687231076,2.17347,2934.8,2933.7,0.17569406]
[1644687231275,2.17347,2934.8,2934.4,0.01039404]
[1644687231676,2.3211,2934.8,2934.4,0.01039404]
[1644687231976,1.3211,2934.8,2934.4,0.01039404]
[1644687232275,1.3211,2934.8,2934.5,0.01039395]
[1644687233221,1.3211,2934.8,2933.6,0.00360277]
[1644687233418,1.3211,2934.8,2934.5,0.00485311]
[1644687233818,5.0,2934.7,2934.5,0.00485311]
[1644687234019,5.0,2934.7,2933.6,0.00360277]
[1644687234020,7.15,2934.5,2933.6,0.00360277]
[1644687234218,7.15,2934.5,2933.4,0.01942001]
[1644687234219,5.0,2934.3,2933.4,0.01942001]
[1644687234418,1.1703,2934.2,2933.3,0.00360277]
[1644687234621,0.1703,2934.2,2933.4,0.1703]
[1644687234819,0.1703,2934.2,2933.5,0.00360277]
[1644687235319,0.1703,2934.2,2933.3,0.17390277]
[1644687236225,0.1703,2934.2,2933.6,0.00484504]
[1644687236878,0.1703,2934.2,2933.3,0.17390277]
[1644687237078,0.1703,2934.2,2933.8,0.01040106]
[1644687237881,4.15,2934.1,2933.1,5.15255781]
[1644687238082,4.15,2934.1,2933.1,2.30769894]
[1644687238284,4.15,2934.1,2933.1,2.47979023]
[1644687238582,4.15,2934.1,2933.9,0.01040089]
[1644687239284,4.15,2934.1,2933.1,2.47979023]
[1644687239285,4.15,2934.1,2933.1,1.2271]
[1644687239583,4.9751,2934.1,2933.1,1.1771]
[1644687239782,5.1454,2934.1,2933.1,1.1771]
[1644687239985,0.75225393,2933.5,2933.1,1.1771]
[1644687240185,0.75225393,2933.5,2932.9,0.1704]
[1644687240517,0.75225393,2933.5,2932.8,0.1703]
[1644687240723,0.75225393,2933.5,2933.2,0.00480673]
[1644687241523,4.9215,2934.0,2933.2,0.00480673]
[1644687241722,4.9215,2934.0,2932.8,0.1703]
[1644687241922,4.93189898,2934.0,2933.2,0.01040197]
[1644687242922,0.87001491,2933.6,2932.8,0.67277136]
[1644687243123,0.87001491,2933.6,2933.5,0.00977336]
[1644687243922,0.87001491,2933.6,2933.5,7.336e-05]
[1644687244122,0.87001491,2933.6,2932.8,0.67277136]
[1644687244123,6.0,2933.9,2932.8,0.1703]
[1644687244376,0.9033,2933.6,2933.5,0.2018]
[1644687244674,0.39382656,2933.4,2933.0,0.03909962]
[1644687245177,0.88874987,2933.3,2933.0,0.03909962]
[1644687245374,0.88874987,2933.3,2932.8,0.1703]
[1644687245776,0.1703,2933.2,2932.8,0.1703]
[1644687245975,0.1703,2933.2,2932.2,0.1703]
[1644687246178,0.1703,2933.2,2932.1,3.6703]
[1644687246375,0.1703,2933.2,2932.1,0.1703]
[1644687247580,0.1703,2933.2,2932.1,0.34239129]
[1644687249223,2.08215,2933.2,2932.5,0.01040311]
[1644687249422,3.08215,2933.2,2932.5,0.01040311]
[1644687249622,2.2293,2933.2,2932.5,0.01040311]
[1644687249822,1.2293,2933.2,2932.5,0.01040311]
[1644687250023,2.2293,2933.2,2932.5,0.01040311]
[1644687250222,2.2293,2933.2,2932.1,0.34239129]
[1644687250423,2.4226,2933.2,2932.7,0.01040278]
[1644687250629,3.4226,2933.2,2932.7,0.01040278]
[1644687251433,3.4226,2933.2,2931.8,0.25]
[1644687251631,3.4226,2933.2,2932.8,0.01040262]
[1644687252272,3.4226,2933.2,2932.4,1.933e-05]
[1644687252273,5.0,2933.0,2932.4,1.933e-05]
[1644687252473,1.1703,2932.9,2932.4,1.933e-05]
[1644687252675,0.363,2932.6,2930.9,8.5738]
[1644687252972,0.1705,2932.5,2930.9,8.5738]
[1644687253172,3.4593,2932.6,2930.9,8.5738]
[1644687253472,1.1705,2932.5,2930.9,8.5738]
[1644687253672,1.1705,2932.5,2931.0,0.00358003]
[1644687253873,1.1788,2932.4,2931.0,0.00358003]
[1644687254175,1.1788,2932.4,2931.6,0.00475861]
[1644687254374,0.78550741,2931.7,2931.6,0.00475861]
[1644687254573,1.1788,2932.4,2931.6,0.00475861]
[1644687254974,1.1788,2932.4,2931.0,0.85654003]
[1644687255174,1.1788,2932.4,2931.1,0.00358003]
[1644687255374,1.1788,2932.4,2931.9,0.0047582]
[1644687256024,0.82585119,2932.2,2931.9,0.0047582]
[1644687256224,0.82585119,2932.2,2931.5,0.1705]
[1644687256425,0.82585119,2932.2,2931.6,0.00358003]
[1644687256625,0.82585119,2932.2,2931.3,0.00358003]
[1644687256826,0.82585119,2932.2,2931.0,3.75]
[1644687256827,0.82585119,2932.2,2931.1,0.00358003]
[1644687258827,0.82585119,2932.2,2931.5,0.01037293]
[1644687259677,0.82585119,2932.2,2931.1,0.00358003]
[1644687260079,0.82585119,2932.2,2931.7,0.01018247]
[1644687260881,0.82585119,2932.2,2931.1,0.00358003]
[1644687261079,0.1705,2932.1,2931.1,0.00358003]
[1644687261280,0.1705,2932.1,2931.8,8.231e-05]
[1644687261490,5.0,2932.0,2931.8,8.231e-05]
[1644687261683,0.4705,2931.9,2931.4,0.00011767]
[1644687261881,0.4705,2931.9,2930.6,0.00358003]
[1644687261882,5.0,2931.5,2930.6,0.00358003]
[1644687262084,1.3013,2931.4,2930.0,0.00458003]
[1644687262282,2.6013,2931.4,2930.0,0.001]
[1644687262483,0.7868653,2930.5,2930.0,0.001]
[1644687263322,0.7868653,2930.5,2930.0,0.00458003]
[1644687263524,0.7868653,2930.5,2930.1,0.01036369]
[1644687263924,3.95889766,2930.4,2930.1,0.01036369]
[1644687264124,4.12949766,2930.4,2930.1,0.01036369]
[1644687264324,1.0,2930.3,2930.1,0.01036369]
[1644687264523,1.0,2930.3,2930.0,0.001]
[1644687264524,3.63753973,2930.2,2930.0,0.001]
[1644687264727,3.63753973,2930.2,2930.1,0.01036369]
[1644687265323,1.0,2930.3,2930.1,0.01036369]
[1644687265731,16.1206,2930.2,2929.2,0.00358003]
[1644687265928,16.1206,2930.2,2928.4,0.1706]
[1644687265929,1.491,2930.1,2929.6,0.04146129]
[1644687266129,0.1706,2930.0,2929.6,0.04146129]